bitfinex-derivatives/quotes_ETHF0:USTF0_20251006
["timestamp","ask_amount","ask_price","bid_price","bid_amount"]
[1759729081805,4.60686,4517.1,4517.0,2.47387512]
[1759729082102,0.7787,4516.6,4516.5,0.321]
[1759729082409,5.39151021,4516.6,4516.5,0.5376]
[1759729082698,0.99582,4517.6,4516.5,0.5376]
[1759729082699,3.2078,4517.6,4517.5,0.135]
[1759729082901,3.2078,4517.6,4517.5,0.8834]
[1759729083104,0.4514,4517.9,4517.8,0.7484]
[1759729083299,1.45800021,4517.9,4517.8,0.7484]
[1759729083496,1.23600021,4517.9,4517.8,41.5484]
[1759729083697,3.99240021,4518.2,4518.1,0.4274]
[1759729083903,4.95330885,4518.2,4518.1,0.7484]
[1759729084102,4.44120021,4518.2,4518.1,1.14667]
[1759729084497,4.99310021,4518.2,4518.1,0.7484]
[1759729086303,3.2078,4518.2,4518.1,0.7484]
[1759729087103,0.2268,4518.7,4518.6,1.14663]
[1759729087311,1.23340021,4518.7,4518.6,1.14663]
[1759729087806,1.45800021,4518.7,4518.6,1.14663]
[1759729088198,1.78530021,4518.7,4518.6,0.7484]
[1759729089805,3.2097824,4519.2,4518.7,0.321]
[1759729090010,0.6734,4519.1,4519.0,1.28159]
[1759729090504,0.6734,4519.1,4519.0,42.08159]
[1759729090703,3.2097824,4519.2,4519.0,42.08159]
[1759729090909,1.39888,4519.1,4519.0,40.935]
[1759729091105,1.39888,4519.1,4519.0,40.8]
[1759729091911,1.39888,4519.1,4519.0,41.121]
[1759729092309,1.0007,4519.1,4519.0,41.121]
[1759729092508,1.0007,4519.1,4519.0,41.256]
[1759729093805,1.0007,4519.1,4519.0,40.8]
[1759729094005,1.39889,4519.1,4518.7,0.39822]
[1759729094209,1.23600021,4518.8,4518.7,0.93582]
[1759729094409,1.45800021,4518.8,4518.7,1.14662]
[1759729094610,1.45800021,4518.8,4518.7,41.94662]
[1759729095110,1.23340021,4518.8,4518.7,41.94662]
[1759729097414,1.00660021,4518.8,4518.7,41.94662]
[1759729098314,0.78460021,4518.8,4518.7,41.94662]
[1759729098516,1.00660021,4518.8,4518.7,41.94662]
[1759729099808,1.00660021,4518.8,4518.7,41.5484]
[1759729100008,0.78460021,4518.8,4518.7,41.5484]
[1759729100309,1.00660021,4518.8,4518.7,41.5484]
[1759729101915,0.78460021,4518.8,4518.7,41.5484]
[1759729102109,1.00660021,4518.8,4518.7,41.5484]
[1759729103211,0.2131,4518.1,4517.7,0.222]
[1759729103411,1.31670021,4518.1,4518.0,0.5866]
[1759729103716,1.31670021,4518.1,4518.0,41.3866]
[1759729104914,0.99770021,4518.1,4518.0,41.3866]
[1759729105321,0.99770021,4518.1,4518.0,41.7208]
[1759729107610,0.78460021,4518.1,4518.0,41.7208]
[1759729107811,3.2078,4518.5,4518.4,0.7858]
[1759729108204,3.4298,4518.5,4518.4,0.7858]
[1759729109817,0.4351,4518.5,4518.4,0.7858]
[1759729110614,0.2131,4518.5,4518.4,0.7858]
[1759729110816,0.4351,4518.5,4518.4,0.7858]
[1759729111919,0.222,4518.5,4518.4,0.7858]
[1759729113120,0.9701,4518.5,4518.4,0.7858]
[1759729113316,0.9701,4518.5,4518.1,0.5616]
[1759729113317,0.93036,4518.2,4518.1,0.5616]
[1759729113525,2.15296021,4518.2,4518.1,0.5616]
[1759729114422,1.75470021,4518.2,4518.1,0.7858]
[1759729115021,0.9701,4518.2,4518.1,0.7858]
[1759729115221,0.9701,4518.2,4518.1,0.7752]
[1759729115222,0.222,4518.2,4518.1,0.7752]
[1759729116324,0.222,4518.2,4518.1,1.17347]
[1759729119221,1.33810021,4518.5,4518.4,0.83275]
[1759729119423,1.56010021,4518.5,4518.4,1.15635]
[1759729121327,1.77920021,4518.5,4518.4,1.15635]
[1759729122625,3.2078,4518.6,4518.5,0.8845]
[1759729122824,3.4298,4518.6,4518.5,0.8845]
[1759729124023,3.4298,4518.6,4518.5,41.6845]
[1759729124224,0.222,4518.6,4518.5,41.6845]
[1759729124625,1.55720021,4519.1,4519.0,0.7581]
[1759729124824,2.29187491,4519.1,4519.0,1.15629]
[1759729126127,2.06987491,4519.1,4519.0,1.15629]
[1759729126328,2.29187491,4519.1,4519.0,1.15629]
[1759729127032,1.5072747,4519.1,4519.0,1.15629]
[1759729129328,1.5072747,4519.1,4519.0,1.28609]
[1759729131735,0.9946,4519.1,4519.0,1.28609]
[1759729132941,3.2097824,4519.2,4519.0,1.28609]
[1759729133135,3.2097824,4519.2,4519.1,0.7493]
[1759729133431,0.0019824,4519.2,4519.1,0.7493]
[1759729134142,0.2239824,4519.2,4519.1,0.7493]
[1759729136736,0.2239824,4519.2,4519.1,41.5493]
[1759729137842,0.0019824,4519.2,4519.1,41.5493]
[1759729139142,0.3208824,4519.2,4519.1,41.0129]
[1759729139638,0.3208824,4519.2,4519.1,41.3419]
[1759729143347,3.5286824,4519.2,4519.1,41.3419]
[1759729143638,0.4301,4518.9,4518.4,0.329]
[1759729143843,0.749,4518.5,4518.4,1.14754]
[1759729144240,0.749,4518.5,4518.4,41.94754]
[1759729144837,0.7469,4518.8,4518.7,0.81852]
[1759729145034,0.7469,4518.8,4518.7,1.14752]
[1759729145438,0.207,4518.8,4518.7,1.14752]
[1759729145637,0.428,4518.8,4518.7,1.14752]
[1759729146345,0.7469,4518.8,4518.7,1.14752]
[1759729147348,0.97,4518.8,4518.7,0.7493]
[1759729147748,0.97,4518.8,4518.7,41.5493]
[1759729150947,3.9587824,4519.2,4519.1,0.4203]
[1759729151146,4.69210424,4519.2,4519.1,0.7493]
[1759729152047,4.69210424,4519.2,4518.5,0.1298]
[1759729152048,0.749,4518.7,4518.6,0.7493]
[1759729152248,0.97,4518.7,4518.6,41.5493]
[1759729155239,4.1778,4518.7,4518.0,0.52467]
[1759729155454,1.14726,4518.3,4518.2,0.5419]
[1759729155752,1.14726,4518.3,4518.2,41.5493]
[1759729155753,4.1778,4518.3,4518.2,41.5493]
[1759729162852,3.8589,4518.3,4518.2,41.5493]
[1759729163051,3.4288,4518.3,4518.2,41.5493]
[1759729164845,0.221,4518.3,4518.2,44.7571]
[1759729169052,0.221,4518.3,4518.2,41.5493]
[1759729169258,4.05211,4518.8,4518.7,0.5194]
[1759729169459,4.27311,4518.8,4518.7,0.7369]
[1759729169854,4.60301,4518.8,4518.7,0.7369]
[1759729171252,5.11586959,4518.8,4518.7,0.7369]
[1759729171947,3.72065959,4518.8,4518.7,1.13512]
[1759729172154,3.94165959,4518.8,4518.7,1.13512]
[1759729172461,3.94165959,4518.8,4518.7,0.7369]
[1759729172662,4.49065959,4518.8,4518.7,0.7369]
[1759729175760,3.94165959,4518.8,4518.7,0.7369]
[1759729175963,3.4288,4518.8,4518.7,0.7369]
[1759729176262,3.2078,4518.8,4518.7,0.7369]
[1759729176464,3.4288,4518.8,4518.7,0.7369]
[1759729180268,3.9803,4518.8,4518.7,0.7369]
[1759729180463,3.7593,4518.8,4518.7,0.7369]
[1759729180664,3.9803,4518.8,4518.7,0.7369]
[1759729182173,4.1902,4518.8,4518.7,0.7369]
[1759729182672,0.4319,4518.8,4518.7,0.7369]
[1759729184181,0.3406,4518.6,4518.5,0.3205]
[1759729184369,0.7614,4518.6,4518.5,0.5257]
[1759729185076,0.7614,4518.6,4518.5,0.8838]
[1759729185569,0.5515,4519.1,4519.0,0.4295]
[1759729185770,0.7725,4519.1,4519.0,0.8838]
[1759729186068,0.9824,4519.1,4519.0,0.8838]
[1759729186466,0.9824,4519.1,4519.0,0.75]
[1759729187272,0.9824,4519.1,4519.0,1.14819]
[1759729190673,0.7614,4519.1,4519.0,1.14819]
[1759729190873,0.9824,4519.1,4519.0,1.14819]
[1759729195271,0.9824,4519.1,4519.0,0.75]
[1759729196477,0.7614,4519.1,4519.0,0.75]
[1759729196689,0.9824,4519.1,4519.0,0.75]
[1759729197077,0.9824,4519.1,4519.0,0.8734]
[1759729201882,0.9824,4519.1,4519.0,0.75]
[1759729202080,0.7753,4518.6,4518.5,0.93474]
[1759729202582,0.7753,4518.6,4518.5,1.14794]
[1759729202879,0.7753,4518.6,4518.5,1.27134]
[1759729203275,0.2274,4518.6,4518.5,1.27134]
[1759729203474,0.5573,4518.8,4518.7,0.83202]
[1759729203680,0.5573,4518.8,4518.7,1.14792]
[1759729205384,1.23220839,4519.0,4518.9,1.1479]
[1759729205580,1.01120839,4519.0,4518.9,1.1479]
[1759729205777,1.34110839,4519.0,4518.9,1.1479]
[1759729208886,1.55910839,4519.0,4518.9,1.1479]
[1759729209787,0.7753,4519.0,4518.9,1.1479]
[1759729211089,0.7753,4519.0,4518.9,41.9479]
[1759729211691,0.7753,4519.0,4518.9,41.5497]
[1759729211893,0.9001,4519.0,4518.9,40.8]
[1759729212102,1.68390839,4519.0,4518.9,40.8]
[1759729212598,1.68390839,4519.0,4518.9,41.1159]
[1759729213296,0.7753,4519.0,4518.9,41.1159]
[1759729219099,1.69570839,4519.0,4518.9,41.1159]
[1759729219304,0.4354,4518.7,4518.6,0.5488]
[1759729219600,1.75870839,4518.7,4518.6,0.5488]
[1759729219798,1.75870839,4518.7,4518.6,41.3488]
[1759729220199,2.15692839,4518.7,4518.6,41.3488]
[1759729220704,1.75870839,4518.7,4518.6,41.74703]
[1759729221403,1.44020839,4518.7,4518.6,41.3488]
[1759729222599,0.9749,4518.7,4518.6,41.3488]
[1759729223603,0.4431,4518.7,4518.6,41.3488]
[1759729225405,4.38982839,4518.8,4518.7,0.82112]
[1759729225593,4.61082839,4518.8,4518.7,1.15532]
[1759729225796,4.61082839,4518.8,4518.7,0.7571]
[1759729226404,5.15142839,4518.8,4518.7,0.7571]
[1759729226605,5.36472839,4518.8,4518.7,0.7571]
[1759729228803,5.36472839,4518.8,4518.7,0.5488]
[1759729229806,5.36472839,4518.8,4518.7,0.7571]
[1759729232807,4.96650839,4518.8,4518.7,0.7571]
[1759729233310,3.4299,4518.8,4518.7,0.7571]
[1759729233509,3.4288,4518.8,4518.7,0.7571]
[1759729233911,3.4288,4518.8,4518.7,41.5571]
[1759729236207,3.7426,4518.8,4518.7,41.5571]
[1759729240310,3.5216,4518.8,4518.7,41.5571]
[1759729240512,3.7426,4518.8,4518.7,41.5571]
[1759729241806,3.7426,4518.8,4518.7,41.3488]
[1759729242011,1.15375,4518.4,4518.3,0.5326]
[1759729242209,2.15855839,4518.4,4518.3,0.5326]
[1759729242405,2.15855839,4518.4,4518.3,41.3326]
[1759729245108,1.76030839,4518.4,4518.3,41.3326]
[1759729245313,1.76030839,4518.4,4518.3,0.7441]
[1759729246613,1.00480839,4518.4,4518.3,0.7441]
[1759729246809,0.39824,4518.5,4518.4,0.5326]
[1759729247017,3.91981,4518.8,4518.7,0.5319]
[1759729247215,4.65171984,4518.8,4518.7,0.7441]
[1759729247513,4.47450984,4518.8,4518.7,0.7441]
[1759729247708,3.93970984,4518.8,4518.7,0.7441]
[1759729249913,3.4288,4518.8,4518.7,0.7441]
[1759729250713,3.6431,4518.8,4518.7,0.7441]
[1759729251314,3.9784,4518.8,4518.7,0.7441]
[1759729252717,4.2009,4518.8,4518.7,0.7441]
[1759729255518,0.9931,4518.8,4518.7,0.7441]
[1759729257219,0.9931,4518.8,4518.6,0.39823]
[1759729257414,0.9931,4518.8,4518.2,44.0078]
[1759729257415,0.7721,4518.3,4518.2,44.0078]
[1759729257713,0.9931,4518.3,4518.2,40.8]
[1759729258217,0.9931,4518.3,4518.2,41.1084]
[1759729266523,3.2078,4518.5,4518.4,0.7275]
[1759729266817,0.3353,4519.0,4518.9,1.1257]
[1759729266818,3.7574,4519.0,4518.9,1.1257]
[1759729267028,4.48856789,4519.0,4518.9,1.1257]
[1759729267325,4.71106789,4519.0,4518.9,1.1257]
[1759729267525,4.71106789,4519.0,4518.9,0.7275]
[1759729273525,4.49006789,4519.0,4518.9,0.7275]
[1759729273724,4.71106789,4519.0,4518.9,0.7275]
[1759729274730,4.83796789,4519.0,4518.9,0.7275]
[1759729274930,1.63016789,4519.0,4518.9,0.7275]
[1759729275227,4.83796789,4519.0,4518.9,0.7275]
[1759729279239,4.83796789,4519.0,4518.9,0.5213]
[1759729280639,4.61696789,4519.0,4518.9,0.5213]
[1759729280838,4.83796789,4519.0,4518.9,0.7304]
[1759729282640,4.61696789,4519.0,4518.9,0.7304]
[1759729282841,4.83796789,4519.0,4518.9,0.7304]
[1759729283942,4.61696789,4519.0,4518.9,0.7304]
[1759729284146,4.83796789,4519.0,4518.9,0.7304]
[1759729285141,4.49006789,4519.0,4518.9,0.7304]
[1759729285441,4.71106789,4519.0,4518.9,0.7304]
[1759729288745,4.49006789,4519.0,4518.9,0.7304]
[1759729288944,4.71106789,4519.0,4518.9,0.7304]
[1759729289244,4.2009,4519.0,4518.9,0.7304]
[1759729289547,4.71119485,4519.0,4518.9,0.7304]
[1759729290043,4.83999485,4519.0,4518.9,0.5213]
[1759729293746,4.83999485,4519.0,4518.9,0.2129]
[1759729294042,0.8136,4518.9,4518.8,0.39821]
[1759729294342,0.7379,4518.9,4518.8,0.92601]
[1759729294845,0.7379,4518.9,4518.8,1.14291]
[1759729295146,3.96,4519.0,4518.9,0.7447]
[1759729295346,4.47036599,4519.0,4518.9,0.7447]
[1759729295845,4.1667,4519.0,4518.9,0.7447]
[1759729297040,3.2078,4519.0,4518.9,0.7447]
[1759729297343,0.0019824,4519.2,4519.1,0.7447]
[1759729297744,0.0019824,4519.2,4519.1,41.5447]
[1759729298344,0.3244824,4519.2,4519.1,41.5447]
[1759729299744,0.0019824,4519.2,4519.1,41.5447]
[1759729300548,0.3244824,4519.2,4519.1,41.5447]
[1759729300750,0.0019824,4519.2,4519.1,41.5447]
[1759729304948,0.0019824,4519.2,4519.1,44.7525]
[1759729311070,0.0019824,4519.2,4519.1,45.53595848]
[1759729316768,0.3279824,4519.2,4519.1,45.53595848]
[1759729317570,0.0019824,4519.2,4519.1,45.53595848]
[1759729319676,0.3279824,4519.2,4519.1,44.9735]
[1759729320077,0.3279824,4519.2,4519.1,44.7525]
[1759729321168,0.0019824,4519.2,4519.1,44.7525]
[1759729321569,0.0019824,4519.2,4519.1,41.5447]
[1759729322170,0.0019824,4519.2,4519.1,42.54915848]
[1759729328679,0.0019824,4519.2,4519.1,44.13829322]
[1759729329681,0.0019824,4519.2,4519.1,43.35483474]
[1759729330377,0.0019824,4519.2,4519.1,41.7657]
[1759729332280,3.6059,4520.1,4519.9,0.7539]
[1759729332281,3.2078,4520.1,4519.9,0.7539]
[1759729332485,3.7511,4520.1,4520.0,0.8881]
[1759729332980,3.7511,4520.1,4520.0,41.6881]
[1759729333381,3.75273301,4520.1,4520.0,41.69056248]
[1759729334178,0.00163301,4520.1,4520.0,41.69056248]
[1759729334481,0.00163301,4520.1,4520.0,45.11936248]
[1759729334775,0.00163301,4520.1,4520.0,46.89095783]
[1759729335176,0.00163301,4520.1,4520.0,46.88941089]
[1759729336181,0.00163301,4520.1,4520.0,46.88870394]
[1759729338288,0.00163301,4520.1,4520.0,45.29907486]
[1759729343089,0.00163301,4520.1,4520.0,42.09127486]
[1759729343288,0.00163301,4520.1,4520.0,45.29907486]
[1759729343892,0.00163301,4520.1,4520.0,42.09127486]
[1759729344095,0.00163301,4520.1,4520.0,45.29907486]
[1759729355503,0.00163301,4520.1,4520.0,46.88870394]
[1759729359202,0.00163301,4520.1,4520.0,45.29907486]
[1759729363504,0.00163301,4520.1,4520.0,42.09127486]
[1759729363705,0.00163301,4520.1,4520.0,45.29907486]
[1759729365912,0.33173301,4520.1,4520.0,45.29907486]
[1759729366107,0.00163301,4520.1,4520.0,45.29907486]
[1759729366808,0.00163301,4520.1,4520.0,44.01026248]
[1759729366809,1.11519149,4520.1,4520.0,44.01026248]
[1759729367000,1.11519149,4520.1,4520.0,40.80246248]
[1759729367899,0.33173301,4520.1,4520.0,40.80246248]
[1759729369410,0.33173301,4520.1,4520.0,41.12376248]
[1759729378313,0.00163301,4520.1,4520.0,41.25336248]
[1759729380518,0.00163301,4520.1,4520.0,41.47436248]
[1759729381118,3.2078,4521.0,4520.9,0.4334]
[1759729381318,3.2078,4521.0,4520.9,1.15273]
[1759729382117,3.20935532,4521.0,4520.9,1.15273]
[1759729382617,3.20935532,4521.0,4520.9,41.95273]
[1759729384821,3.20935532,4521.0,4520.9,41.5547]
[1759729387227,3.43035532,4521.0,4520.9,41.5547]
[1759729387520,3.74645532,4521.0,4520.9,41.3285]
[1759729387727,3.87445532,4521.0,4520.9,41.3285]
[1759729388420,3.74645532,4521.0,4520.9,41.3285]
[1759729390335,3.43035532,4521.0,4520.9,41.3285]
[1759729391226,3.74645532,4521.0,4520.9,41.3285]
[1759729394338,1.15508,4520.3,4520.2,0.3213]
[1759729394635,1.91805592,4520.3,4520.0,0.00246248]
[1759729394840,1.1551,4520.1,4520.0,0.00246248]
[1759729395040,1.3761,4520.1,4520.0,0.00246248]
[1759729395537,1.3761,4520.1,4520.0,0.32376248]
[1759729395736,1.3761,4520.1,4520.0,0.53096248]
[1759729399034,4.5839,4520.1,4520.0,0.53096248]
[1759729401244,4.5839,4520.1,4520.0,0.74296248]
[1759729401540,4.1858,4520.1,4520.0,0.86606248]
[1759729401935,3.2078,4520.1,4520.0,0.86606248]
[1759729402238,0.1235,4520.5,4520.0,5.42166248]
[1759729402538,0.128,4521.5,4521.4,0.39798]
[1759729402735,0.128,4521.5,4521.4,41.19798]
[1759729403148,0.128,4521.5,4521.4,40.8]
[1759729403345,0.12978703,4521.5,4521.4,40.8]
[1759729404441,0.45998703,4521.5,4521.4,40.8]
[1759729440571,0.45998703,4521.5,4521.4,41.58284131]
[1759729441773,0.45998703,4521.5,4521.4,41.80384131]
[1759729441968,0.10053241,4521.5,4521.4,41.80384131]
[1759729442170,0.23303241,4521.5,4521.4,41.80384131]
[1759729442366,0.1328,4522.0,4521.4,41.80384131]
[1759729442571,0.1235,4522.5,4522.4,0.39789]
[1759729442771,0.1235,4522.5,4522.4,4.60953131]
[1759729442970,0.12603149,4522.5,4522.4,45.40953131]
[1759729444471,0.45853149,4522.5,4522.4,45.40953131]
[1759729449379,0.45853149,4522.5,4522.4,44.40569]
[1759729449575,0.45853149,4522.5,4522.4,45.40953131]
[1759729458683,0.45853149,4522.5,4522.4,44.62669]
[1759729468688,0.43633149,4522.5,4522.4,44.0078]
[1759729469383,5.43633149,4522.5,4522.4,40.8]
[1759729469582,5.43633149,4522.5,4521.9,3.2078]
[1759729469583,0.8847,4522.0,4521.9,3.4288]
[1759729469978,0.8847,4522.0,4521.9,44.2288]
[1759729473397,0.4454,4522.0,4521.9,44.2288]
[1759729475795,0.52392149,4522.5,4521.9,44.2288]
[1759729475796,0.12603149,4522.5,4522.4,0.39789]
[1759729476287,0.63162532,4522.5,4522.4,0.39789]
[1759729476985,0.85632532,4522.5,4522.4,0.39789]
[1759729477797,1.19732532,4522.5,4522.4,0.39789]
[1759729478092,0.69173149,4522.5,4522.4,0.39789]
[1759729483299,0.69173149,4522.5,4522.4,41.19789]
[1759729485196,0.69173149,4522.5,4522.4,41.41889]
[1759729485399,0.69173149,4522.5,4522.4,41.021]
[1759729485792,0.69173149,4522.5,4522.4,41.41889]
[1759729486700,0.69173149,4522.5,4522.4,41.021]
[1759729491904,0.46703149,4522.5,4522.4,41.021]
[1759729498696,0.46703149,4522.5,4522.4,40.8]
[1759729505312,0.97307458,4522.5,4522.4,40.8]
[1759729506512,0.46703149,4522.5,4522.4,40.8]
[1759729507515,0.97108999,4522.5,4522.4,40.8]
[1759729509317,0.46703149,4522.5,4522.4,40.8]
[1759729510516,0.34353149,4522.5,4522.4,40.8]
[1759729511116,0.00253149,4522.5,4522.4,40.8]
[1759729513719,0.33983149,4522.5,4522.4,40.8]
[1759729514724,0.00253149,4522.5,4522.4,40.8]
[1759729515218,0.00253149,4522.5,4522.4,44.0078]
[1759729517920,0.022,4522.9,4522.7,0.39787]
[1759729518121,0.022,4522.9,4522.8,0.221]
[1759729518828,0.02450231,4522.9,4522.8,0.221]
[1759729519322,0.02450231,4522.9,4522.8,41.021]
[1759729528130,0.3366,4523.7,4522.8,46.021]
[1759729528334,0.1238,4524.0,4523.9,0.39776]
[1759729528536,0.1238,4524.0,4523.9,0.61876]
[1759729528740,0.1238,4524.0,4523.9,41.41876]
[1759729529235,0.12571939,4524.0,4523.9,41.42129877]
[1759729530331,0.46231939,4524.0,4523.9,41.5962151]
[1759729539252,0.00191939,4524.0,4523.9,41.5962151]
[1759729540354,0.34241939,4524.0,4523.9,41.5962151]
[1759729540653,0.00191939,4524.0,4523.9,41.5962151]
[1759729542858,0.34241939,4524.0,4523.9,41.5962151]
[1759729544456,0.46581939,4524.0,4523.9,41.5962151]
[1759729545352,0.46581939,4524.0,4523.9,40.80253877]
[1759729545545,0.46581939,4524.0,4523.9,41.02353877]
[1759729546758,0.86356939,4524.0,4523.9,40.80253877]
[1759729547057,0.46581939,4524.0,4523.9,41.02353877]
[1759729549461,0.46581939,4524.0,4523.9,40.80253877]
[1759729549854,0.46581939,4524.0,4523.9,41.02353877]
[1759729555061,6.24777311,4524.0,4523.9,40.80253877]
[1759729555266,6.68947311,4524.0,4523.9,0.00253877]
[1759729555468,7.18818744,4524.0,4523.9,0.00253877]
[1759729561075,6.62723372,4524.0,4523.9,0.00253877]
[1759729561868,6.40623372,4524.0,4523.9,0.00253877]
[1759729562172,6.62723372,4524.0,4523.9,0.00253877]
[1759729564374,6.12851939,4524.0,4523.9,0.00253877]
[1759729568481,5.90751939,4524.0,4523.9,0.00253877]
[1759729568669,6.12851939,4524.0,4523.9,0.00253877]
[1759729569581,0.90751939,4524.0,4523.9,0.00253877]
[1759729569782,1.12851939,4524.0,4523.9,0.00253877]
[1759729570083,1.91047311,4524.0,4523.9,0.00253877]
[1759729574282,2.40910355,4524.0,4523.9,0.00253877]
[1759729582590,2.40910355,4524.0,4522.7,0.5443]
[1759729582591,1.17346,4522.8,4522.7,0.5443]
[1759729582892,1.39446,4522.8,4522.7,0.7668]
[1759729583488,1.39446,4522.8,4522.7,41.56924416]
[1759729590197,0.9966,4522.8,4522.7,41.56924416]
[1759729590499,0.95034,4523.1,4523.0,0.8937]
[1759729590687,1.17134,4523.1,4523.0,0.8937]
[1759729592295,0.95034,4523.1,4523.0,0.8937]
[1759729592500,1.17134,4523.1,4523.0,0.8937]
[1759729595598,1.39444,4523.1,4523.0,0.8937]
[1759729596901,0.5525,4523.1,4523.0,0.8937]
[1759729597299,0.5337,4523.9,4523.8,0.5559]
[1759729597600,1.4791362,4523.9,4523.8,0.7676]
[1759729597794,1.4791362,4523.9,4523.8,41.5676]
[1759729598293,1.8768962,4523.9,4523.8,41.5676]
[1759729602102,1.3379962,4523.9,4523.8,41.5676]
[1759729602304,1.1188962,4523.9,4523.8,41.5676]
[1759729602606,0.7211362,4523.9,4523.8,41.5676]
[1759729602806,1.1188962,4523.9,4523.8,41.5676]
[1759729603208,1.4334962,4523.9,4523.8,41.5676]
[1759729608411,0.8978962,4523.9,4523.8,41.5676]
[1759729608607,0.5001362,4523.9,4523.8,41.5676]
[1759729613423,0.00191939,4524.0,4523.9,0.39776]
[1759729613614,0.00191939,4524.0,4523.9,1.13216]
[1759729617013,0.00191939,4524.0,4523.9,1.35316]
[1759729617213,0.00191939,4524.0,4523.9,4.56096]
[1759729620420,0.32391939,4524.0,4523.9,4.56096]
[1759729620620,0.93576939,4524.0,4523.9,0.7344]
[1759729623922,0.00191939,4524.0,4523.9,1.67271607]
[1759729624221,3.2078,4525.2,4525.0,0.551]
[1759729624411,0.322,4525.4,4525.3,0.39764]
[1759729624724,0.5361,4525.6,4525.5,0.551]
[1759729624915,1.0321226,4525.6,4525.5,41.6664]
[1759729625222,1.03400036,4525.6,4525.5,0.8664]
[1759729625622,1.03400036,4525.6,4525.5,41.6664]
[1759729626521,0.00187776,4525.6,4525.5,41.6664]
[1759729630327,0.32387776,4525.6,4525.5,41.6664]
[1759729631721,0.00187776,4525.6,4525.5,41.6664]
[1759729633330,0.00187776,4525.6,4525.5,41.8874]
[1759729634227,3.2078,4526.4,4526.3,1.13195]
[1759729634424,3.5298,4526.9,4526.8,0.7344]
[1759729634729,3.7508,4526.9,4526.8,0.7344]
[1759729634930,4.3624,4526.9,4526.8,41.5344]
[1759729635327,4.36465233,4526.9,4526.8,41.5365946]
[1759729637426,4.14365233,4526.9,4526.8,41.5365946]
[1759729637622,4.36465233,4526.9,4526.8,41.5365946]
[1759729638531,3.82855233,4526.9,4526.8,41.5365946]
[1759729638732,3.60755233,4526.9,4526.8,41.5365946]
[1759729638932,3.82855233,4526.9,4526.8,41.5365946]
[1759729640444,4.16685233,4526.9,4526.8,41.5365946]
[1759729640647,3.82855233,4526.9,4526.8,41.5365946]
[1759729641142,4.16685233,4526.9,4526.8,41.5365946]
[1759729641541,3.82855233,4526.9,4526.8,41.5365946]
[1759729642743,3.43105233,4526.9,4526.8,41.5365946]
[1759729647049,3.21005233,4526.9,4526.8,41.5365946]
[1759729647247,3.54835233,4526.9,4526.8,41.3234946]
[1759729647945,3.21005233,4526.9,4526.8,41.3234946]
[1759729648349,3.43105233,4526.9,4526.8,41.3234946]
[1759729649652,3.21005233,4526.9,4526.8,41.5444946]
[1759729649950,0.00225233,4526.9,4526.8,41.5444946]
[1759729654545,0.00225233,4526.9,4526.8,41.3234946]
[1759729654747,0.00225233,4526.9,4526.8,41.5444946]
[1759729654954,0.33105233,4526.9,4526.8,41.3234946]
[1759729658750,0.00225233,4526.9,4526.8,41.3234946]
[1759729659151,0.00225233,4526.9,4526.8,41.7210046]
[1759729659854,0.00225233,4526.9,4526.8,41.3234946]
[1759729663151,0.33105233,4526.9,4526.8,41.3234946]
[1759729663350,0.82533655,4526.9,4526.8,41.3234946]
[1759729666048,1.04633655,4526.9,4526.8,41.3234946]
[1759729672855,0.71753655,4526.9,4526.8,41.3234946]
[1759729673257,1.03863655,4526.9,4526.8,41.3234946]
[1759729673556,0.71753655,4526.9,4526.8,41.3234946]
[1759729675360,0.49653655,4526.9,4526.8,41.3234946]
[1759729680567,0.81763655,4526.9,4526.8,41.3234946]
[1759729681069,0.49653655,4526.9,4526.8,41.3234946]
[1759729686365,0.49653655,4526.9,4526.8,41.5444946]
[1759729687861,0.49653655,4526.9,4526.8,46.5444946]
[1759729688067,3.2078,4528.2,4526.8,46.5444946]
[1759729688068,0.022,4527.9,4527.8,0.7422]
[1759729688670,0.022,4527.9,4527.8,41.5422]
[1759729688969,0.022,4527.9,4527.8,44.75]
[1759729688970,0.02487108,4527.9,4527.8,44.75]
[1759729689569,0.02487108,4527.9,4527.8,44.971]
[1759729690164,0.34597108,4527.9,4527.8,44.971]
[1759729690372,0.02487108,4527.9,4527.8,44.971]
[1759729691267,0.34597108,4527.9,4527.8,44.971]
[1759729692980,0.34597108,4527.9,4527.8,44.75]
[1759729694574,0.02487108,4527.9,4527.8,44.971]
[1759729695876,0.02487108,4527.9,4527.8,44.75]
[1759729695877,0.34597108,4527.9,4527.8,44.75]
[1759729696071,0.34597108,4527.9,4527.8,44.6663]
[1759729696267,0.34597108,4527.9,4527.8,44.4453]
[1759729696471,0.34597108,4527.9,4527.8,44.75]
[1759729696667,0.34597108,4527.9,4527.8,44.4453]
[1759729697572,0.96195,4527.5,4527.4,0.4375]
[1759729697777,0.96195,4527.5,4527.4,0.7418]
[1759729698170,0.72204,4527.7,4527.4,0.83495]
[1759729698369,0.72204,4527.7,4527.6,0.7475]
[1759729698574,0.72204,4527.7,4527.6,41.5475]
[1759729699779,0.72204,4527.7,4527.6,41.2432]
[1759729701274,0.72204,4527.7,4527.6,41.0201]
[1759729701479,0.72204,4527.7,4527.6,40.8]
[1759729703773,0.3975,4526.9,4526.8,3.6531946]
[1759729703973,0.7221,4526.9,4526.8,3.9574946]
[1759729704175,0.39744,4527.6,4527.4,0.39745]
[1759729704373,0.39744,4527.6,4527.5,0.4432]
[1759729704776,3.2078,4527.7,4527.5,0.7475]
[1759729704972,0.42229108,4527.9,4527.8,0.7475]
[1759729705174,0.02487108,4527.9,4527.8,1.52846807]
[1759729705479,3.5324,4529.2,4529.1,0.4432]
[1759729705776,1.71363415,4530.0,4529.2,0.2795]
[1759729705777,0.39727,4529.6,4529.2,0.2795]
[1759729705974,0.5493,4529.6,4529.5,0.7227]
[1759729706175,0.3246,4529.6,4529.5,0.7227]
[1759729706374,0.55110636,4529.6,4529.5,0.7227]
[1759729706973,0.77090636,4529.6,4529.5,0.4432]
[1759729707175,0.7691,4529.4,4529.3,40.8]
[1759729707381,1.55006807,4529.4,4529.3,40.8]